bitfinex/quotes_SOLUSD_20250922
["timestamp","ask_amount","ask_price","bid_price","bid_amount"]
[1758520818102,20.0,222.95,222.0,0.5]
[1758520818274,20.0,222.81,221.92,11.30447692]
[1758520818481,11.4,222.8,221.92,11.30447692]
[1758520818680,20.0,222.97,221.92,11.30447692]
[1758520818891,36.97023192,222.8,221.93,35.77073851]
[1758520819197,36.97023192,222.8,222.05,19.95645358]
[1758520819403,36.97023192,222.8,221.92,11.30447692]
[1758520819404,36.4377469,223.06,222.12,19.95645358]
[1758520819582,36.39420048,223.06,222.23,19.95645358]
[1758520819900,37.03,223.05,222.2,19.95645358]
[1758520820082,0.184,222.23,221.92,11.30447692]
[1758520820509,0.33350131,222.2,221.92,11.30447692]
[1758520821189,0.33350131,222.2,221.95,19.95645358]
[1758520821386,0.33350131,222.2,221.58,22.61547739]
[1758520821596,0.33350131,222.2,221.61,22.96209446]
[1758520821794,0.33350131,222.2,221.63,19.95645358]
[1758520822104,0.33350131,222.2,221.61,22.96209446]
[1758520822399,0.33350131,222.2,221.74,13.23320599]
[1758520822580,0.33350131,222.2,221.74,19.95645358]
[1758520822779,0.33350131,222.2,221.84,19.95645358]
[1758520822988,0.33350131,222.2,221.76,19.95645358]
[1758520823200,0.33350131,222.2,221.75,5.4654289]
[1758520823402,0.33350131,222.2,221.79,19.95645358]
[1758520823601,0.33350131,222.2,221.68,50.0]
[1758520823602,0.33350131,222.2,221.76,19.95645358]
[1758520823901,0.33350131,222.2,221.68,50.0]
[1758520824106,0.33350131,222.2,221.74,19.95645358]
[1758520824296,0.33350131,222.2,221.88,19.95645358]
[1758520824482,0.33350131,222.2,222.04,19.95645358]
[1758520824684,0.33350131,222.2,221.81,27.23479349]
[1758520824685,0.33350131,222.2,222.07,19.95645358]
[1758520825032,0.33350131,222.2,222.19,5.4654289]
[1758520825186,0.33350131,222.2,221.88,19.95645358]
[1758520825380,0.33350131,222.2,221.86,19.95645358]
[1758520825587,0.33350131,222.2,221.95,19.95645358]
[1758520825881,0.33350131,222.2,221.84,13.57333474]
[1758520825882,0.33350131,222.2,222.19,5.4654289]
[1758520826183,0.71,222.77,222.06,19.95645358]
[1758520826511,0.71,222.77,221.92,19.95645358]
[1758520826682,22.86720561,222.76,222.04,19.95645358]
[1758520827112,22.19565711,222.72,221.85,0.11361451]
[1758520827286,22.86720561,222.76,221.98,19.95645358]
[1758520827490,18.42242562,222.87,222.23,5.4654289]
[1758520827822,0.65,222.99,222.19,19.95645358]
[1758520827984,0.65,223.05,222.25,5.4654289]
[1758520828306,0.65,223.05,222.27,19.95645358]
[1758520828490,0.65,223.05,222.25,16.3962867]
[1758520828687,0.65,223.25,222.15,36.44]
[1758520828888,0.65,223.25,222.1,36.46]
[1758520829090,0.65,223.25,222.5,5.4654289]
[1758520829290,0.65,223.25,222.76,5.4654289]
[1758520829611,0.65,223.25,222.5,5.4654289]
[1758520829802,0.65,223.25,222.76,5.4654289]
[1758520830113,0.65,223.25,222.77,5.4654289]
[1758520830408,0.65,223.25,222.75,5.4654289]
[1758520830608,0.65,223.25,222.5,5.4654289]
[1758520830910,0.65,223.25,222.25,21.8617156]
[1758520831088,0.65,223.25,222.8,5.4654289]
[1758520831295,0.65,223.25,222.5,5.4654289]
[1758520831509,1.99639834,222.83,222.5,5.4654289]
[1758520831820,1.99639834,222.83,222.25,49.00144883]
[1758520831990,1.99639834,222.83,222.26,6.12904423]
[1758520832317,1.99639834,222.83,222.5,21.8617156]
[1758520832493,1.99639834,222.83,222.82,5.4654289]
[1758520832694,1.99639834,222.83,222.41,42.56904423]
[1758520832989,36.44,223.31,222.82,5.4654289]
[1758520833209,36.44,223.31,222.42,22.63258415]
[1758520833389,36.44,223.55,222.5,21.8617156]
[1758520833588,36.44,223.55,222.75,21.8617156]
[1758520833810,36.44,223.55,222.51,6.12904423]
[1758520834026,36.44,223.55,222.75,21.8617156]
[1758520834317,36.44,223.55,223.0,5.4654289]
[1758520834519,36.44,223.55,222.75,21.8617156]
[1758520834684,36.44,223.55,223.2,5.4654289]
[1758520834892,0.65,223.69,223.0,5.4654289]
[1758520835085,0.65,223.69,223.25,5.4654289]
[1758520835310,0.65,223.82,223.25,5.39802032]
[1758520835501,0.2,223.78,223.25,5.4654289]
[1758520835702,0.2,223.78,223.69,5.4654289]
[1758520836008,0.2,223.78,223.5,5.4654289]
[1758520836725,0.2,223.78,223.4,80.02]
[1758520837013,0.2,223.78,223.5,5.4654289]
[1758520837616,0.2,223.78,223.77,5.51483374]
[1758520837913,0.2,223.78,223.48,22.44]
[1758520838224,28.38354005,224.06,223.77,5.51483374]
[1758520838390,0.65,224.17,223.96,5.31490434]
[1758520838592,0.65,224.17,223.68,5.51483374]
[1758520838593,6.51286916,224.18,223.72,31.2]
[1758520838824,0.65,224.33,223.68,36.71483374]
[1758520839119,0.65,224.33,223.67,36.4]
[1758520839120,0.65,224.32,223.67,36.4]
[1758520839293,0.65,224.31,223.67,36.4]
[1758520839607,0.65,224.3,223.68,5.51483374]
[1758520839933,0.65,224.3,223.97,5.51483374]
[1758520840100,0.65,224.3,224.05,5.51483374]
[1758520840294,0.65,224.3,223.69,37.34]
[1758520840295,0.65,224.3,224.06,5.51483374]
[1758520840508,0.65,224.3,224.08,5.49832616]
[1758520840811,0.65,224.3,223.74,31.2]
[1758520841011,0.65,224.3,223.7,31.2]
[1758520841012,6.38104802,224.36,224.11,22.44804851]
[1758520841221,0.65,224.6,224.01,22.34296969]
[1758520841412,0.65,224.6,223.95,36.36]
[1758520841413,5.49832616,224.54,223.96,22.67865958]
[1758520841643,7.1182826,224.6,224.01,22.34296969]
[1758520841828,5.49832616,224.54,224.01,22.34296969]
[1758520842139,0.65,224.54,224.01,22.34296969]
[1758520842314,0.65,224.54,224.0,5.49832616]
[1758520842315,5.49832616,224.48,224.22,22.65240504]
[1758520842639,5.49832616,224.32,223.97,22.45065369]
[1758520842840,5.49832616,224.64,223.69,13.41141758]
[1758520842841,0.65,224.31,223.69,35.9473186]
[1758520843338,5.49832616,224.37,224.14,22.52196779]
[1758520843509,5.49832616,224.37,223.68,5.49832616]
[1758520843510,5.49832616,224.5,224.01,22.34296969]
[1758520843706,6.52588718,224.6,224.26,5.49832616]
[1758520843910,36.99,224.63,224.01,36.34]
[1758520843911,0.65,224.63,224.02,22.85040798]
[1758520844128,7.01838803,224.63,224.02,22.85040798]
[1758520844332,5.49832616,224.61,224.33,5.49832616]
[1758520844508,0.65,224.63,224.23,22.28422511]
[1758520844509,6.95021592,224.63,224.39,6.30021592]
[1758520844714,6.38129779,224.63,224.45,6.30021592]
[1758520844931,0.65,224.78,224.21,22.76161163]
[1758520845113,0.65,224.78,224.56,6.30021592]
[1758520845313,6.51982473,224.78,224.56,6.30021592]
[1758520845525,36.34,224.84,224.56,6.30021592]
[1758520845731,42.66186348,224.84,224.28,36.32]
[1758520845918,0.65,224.83,224.21,22.76161163]
[1758520846114,0.65,224.82,224.21,22.76161163]
[1758520846318,0.65,224.81,224.21,22.76161163]
[1758520846543,6.30021592,224.73,224.21,22.76161163]
[1758520846717,0.65,224.72,224.02,22.85040798]
[1758520846913,0.65,224.72,224.21,22.76161163]
[1758520847132,0.65,224.71,224.39,6.30021592]
[1758520847432,0.65,224.7,224.05,22.47649437]
[1758520847635,0.65,224.7,224.49,6.30021592]
[1758520847836,0.65,224.7,224.1,22.14652055]
[1758520848046,0.65,224.72,224.03,22.9976479]
[1758520848338,0.65,224.69,224.09,22.88610547]
[1758520848536,6.45276294,224.84,224.09,22.88610547]
[1758520848740,36.28,224.94,224.6,6.30021592]
[1758520848741,0.65,224.91,224.6,6.30021592]
[1758520848910,0.65,224.91,224.28,36.26]
[1758520849111,0.65,224.9,224.51,6.30021592]
[1758520849312,20.0,224.66,224.37,6.30021592]
[1758520849529,20.0,224.66,223.83,22.16428167]
[1758520849530,20.0,224.46,223.83,22.16428167]
[1758520849743,0.65,224.65,223.65,36.06593099]
[1758520849744,20.0,224.39,223.65,36.06593099]
[1758520850020,20.0,224.39,223.64,36.26]
[1758520850021,0.65,224.38,224.08,22.00548246]
[1758520850336,20.65,224.37,224.08,22.00548246]
[1758520850521,38.55351355,224.36,223.66,35.48254935]
[1758520850719,38.55351355,224.36,223.64,36.26]
[1758520850720,4.84593719,224.35,223.69,35.76415825]
[1758520850936,2.29351355,224.34,223.92,22.4739686]
[1758520851140,1.64351355,224.33,223.83,22.99779025]
[1758520851322,1.65315509,224.32,224.01,6.30021592]
[1758520851517,2.57016664,224.47,223.83,42.99779025]
[1758520851737,2.57016664,224.47,223.82,6.30021592]
[1758520851738,25.24783245,224.71,224.14,22.18010078]
[1758520851925,25.24783245,224.71,223.94,22.19084287]
[1758520852128,26.07,224.53,223.96,22.51613885]
[1758520852317,25.24783245,224.71,223.95,20.0]
[1758520852318,25.24783245,224.71,224.28,6.30021592]
[1758520852640,80.68783245,224.71,224.29,6.30021592]
[1758520852816,80.68783245,224.71,223.96,22.51613885]
[1758520853023,13.03,224.7,223.96,22.51613885]
[1758520853222,26.07,224.69,223.96,22.51613885]
[1758520853538,0.65,224.68,223.96,22.51613885]
[1758520853841,0.65,224.67,223.96,22.51613885]
[1758520854048,0.65,224.66,223.96,22.51613885]
[1758520854257,0.65,224.65,223.96,22.32341807]
[1758520854557,10.77,224.64,223.96,22.21892143]
[1758520854716,0.55,224.63,223.96,22.21892143]
[1758520855045,44.37,224.62,223.96,22.21892143]
[1758520855249,72.52,224.61,223.96,22.21892143]
[1758520855419,100.78110946,224.61,223.96,22.21892143]
[1758520855621,36.26,224.6,223.98,22.29436143]
[1758520855833,26.07,224.58,224.16,22.81807488]
[1758520856039,67.72,224.57,224.2,22.94491626]
[1758520856240,67.72,224.57,224.17,22.85130866]
[1758520856431,67.72,224.57,224.03,22.90397277]
[1758520856651,67.72,224.57,223.86,22.93250144]
[1758520856652,13.03,224.56,223.86,22.93250144]
[1758520856940,90.92,224.55,223.75,36.09682802]
[1758520857119,0.55,224.54,223.5,0.65]
[1758520857321,36.26,224.33,223.51,35.44435199]
[1758520857523,36.26,224.33,223.7,35.84249693]
[1758520857524,13.58,224.32,223.7,35.84249693]
[1758520857728,26.62,224.31,223.26,35.49970325]
[1758520857946,12.67865171,224.29,224.19,22.64015726]
[1758520858240,12.67865171,224.29,222.95,13.68626507]
[1758520858241,68.39,224.28,223.38,36.22595462]
[1758520858447,0.67,224.27,223.59,35.68251177]
[1758520858749,94.46,224.27,223.7,35.87788335]
[1758520859240,93.79,224.27,223.86,22.81063803]
[1758520859440,93.79,224.27,223.52,36.26]
[1758520859441,25.34476735,224.25,223.88,22.33216418]
[1758520859626,13.03,224.26,223.86,22.81063803]
[1758520859829,13.03,224.26,223.76,22.30636107]
[1758520860033,19.61327341,224.26,223.76,22.30636107]
[1758520860222,19.61327341,224.26,223.72,13.40961916]
[1758520860223,20.28327341,224.26,223.72,13.40961916]
[1758520860426,13.03,224.24,223.73,36.2446637]
[1758520861054,11.33112905,224.23,223.73,36.2446637]
[1758520861238,11.33112905,224.23,223.77,22.43836237]
[1758520861433,6.58327341,224.26,223.73,36.2446637]
[1758520861652,67.72,224.27,223.81,22.02858503]
[1758520861856,60.3,224.26,223.83,22.33564238]
[1758520862045,26.07,224.25,223.83,22.33564238]
[1758520862229,13.03,224.24,224.01,22.0996198]
[1758520862429,13.03,224.24,223.97,9.51008803]
[1758520862735,30.8847112,224.64,223.82,0.65]
[1758520862736,30.8847112,224.64,224.12,22.24961507]
[1758520862934,67.76,224.63,224.1,22.52557915]
[1758520863151,67.76,224.63,223.98,0.65]
[1758520863152,13.03,224.61,223.99,22.13534121]
[1758520863344,13.03,224.61,224.13,22.30470467]
[1758520863542,13.03,224.61,224.09,22.36372176]
[1758520863738,13.03,224.61,224.16,22.88844655]
[1758520863941,40.54,224.6,224.19,22.92316885]
[1758520864145,40.54,224.6,224.21,22.3936099]
[1758520864146,13.03,224.58,224.21,22.3936099]
[1758520864451,13.03,224.58,224.3,9.51008803]
[1758520864644,13.03,224.58,224.27,20.0]
[1758520864851,13.03,224.58,224.29,20.0]
[1758520865041,13.03,224.59,224.25,20.0]
[1758520865368,13.03,224.59,224.21,22.3936099]
[1758520865369,40.54,224.6,224.26,0.65]
[1758520865545,0.67,224.59,224.21,9.51008803]
[1758520865746,40.54,224.6,224.16,22.88844655]
[1758520865970,40.54,224.6,223.82,9.51008803]
[1758520865971,0.67,224.58,224.02,22.96910784]
[1758520866137,0.67,224.58,223.44,45.77008803]
[1758520866138,0.67,224.57,223.82,22.09416161]
[1758520866443,0.67,224.57,223.84,22.39413436]
[1758520866444,68.41,224.56,223.84,22.39413436]
[1758520866640,68.41,224.56,223.74,22.05890171]
[1758520866641,3.25862209,224.55,223.74,22.05890171]
[1758520866840,3.25862209,224.55,223.34,4.47729027]
[1758520866841,13.03,224.35,223.67,22.62703642]
[1758520867041,72.52,224.34,223.53,22.86404454]
[1758520867246,3.25554965,224.33,223.44,22.76741539]
[1758520867540,0.67,224.32,223.69,35.61681542]
[1758520867858,0.67,224.32,223.68,0.97171472]
[1758520867859,68.41,224.31,223.71,35.89566982]
[1758520868059,3.25554965,224.3,223.73,36.2446637]
[1758520868359,67.76,224.29,223.75,22.87303162]
[1758520868560,72.52,224.34,223.82,22.09416161]
[1758520868561,0.89554965,224.28,223.82,22.09416161]
[1758520868760,36.26,224.34,223.77,22.43836237]
[1758520869060,0.67,224.33,223.87,22.32640499]
[1758520869260,36.26,224.34,223.98,22.44712762]
[1758520869448,0.67,224.33,224.08,22.47902773]
[1758520869639,0.67,224.33,223.69,31.2]
[1758520869640,0.67,224.55,224.1,22.52557915]
[1758520869963,36.95,224.62,224.17,22.98553643]
[1758520870168,95.86,224.61,224.12,22.24961507]
[1758520870470,0.67,224.6,223.94,22.49243315]
[1758520870666,0.67,224.6,223.83,22.97506316]
[1758520870874,0.67,224.59,223.74,22.73774689]
[1758520871045,0.67,224.58,223.7,22.43020612]
[1758520871243,68.43,224.57,223.95,22.46923322]
[1758520871445,0.67,224.56,223.81,22.7988561]
[1758520871649,0.66,224.55,223.79,22.25543946]
[1758520871866,36.28,224.34,223.59,22.89031705]
[1758520872064,89.7,224.33,223.45,36.18323743]
[1758520872367,89.7,224.33,223.06,9.51008803]
[1758520872368,68.42,224.32,223.54,36.40912814]
[1758520872677,36.28,224.33,223.69,35.73760932]
[1758520872678,0.66,224.31,223.69,35.73760932]
[1758520872842,0.66,224.31,224.3,0.06695407]
[1758520873039,0.66,224.31,224.22,22.37479087]
[1758520873040,0.66,224.31,223.75,22.02613664]
[1758520873276,0.66,224.3,223.75,20.0]
[1758520873575,0.66,224.29,223.61,35.60702741]
[1758520873744,26.36009504,224.32,223.61,35.60702741]
[1758520873745,0.66,224.28,223.61,35.60702741]
[1758520874063,0.66,224.28,223.59,20.0]
[1758520874064,1.24,224.27,223.7,35.71873882]
[1758520874266,0.66,224.27,223.77,22.86607459]
[1758520874444,67.78,224.26,223.81,22.53251166]
[1758520874769,36.28,224.34,224.25,31.07194172]
[1758520875375,0.66,224.33,224.25,30.35194172]
[1758520875552,0.66,224.33,224.25,29.63194172]
[1758520875952,36.28,224.34,224.25,29.63194172]
[1758520876151,36.28,224.34,224.23,22.50410554]
[1758520876152,0.66,224.33,224.03,22.7716332]
[1758520876349,68.44,224.32,223.93,22.43188049]
[1758520876553,0.66,224.31,223.85,22.17631111]
[1758520876758,0.66,224.31,223.44,9.51008803]
[1758520876759,0.66,224.3,223.79,22.3537775]
[1758520876972,81.88628211,224.29,223.79,22.3537775]
[1758520877281,0.66,224.28,223.79,22.3537775]
[1758520877582,0.66,224.27,224.21,29.1030678]
[1758520877779,0.66,224.26,223.79,22.38339693]
[1758520878070,0.66,224.26,223.0,20.0]
[1758520878071,68.44,224.25,223.75,22.7479355]
[1758520878279,0.66,224.24,223.75,22.7479355]
[1758520878456,84.2190381,225.82,223.59,13.4174158]
[1758520878457,22.17267852,224.55,223.59,13.4174158]
[1758520878648,4.343,224.47,223.6,36.37969611]
[1758520878854,4.343,224.47,223.62,36.10327417]
[1758520879069,4.343,224.47,223.31,6.44713987]
[1758520879070,4.343,224.45,223.64,36.23333068]
[1758520879247,4.343,224.45,223.66,35.67068009]
[1758520879449,26.07,224.32,223.68,35.83687573]
[1758520879649,46.61786931,224.68,223.7,36.09480245]
[1758520879951,22.17267852,224.55,223.7,36.09480245]
[1758520880149,0.2,224.56,223.72,36.36754365]
[1758520880346,26.07,224.54,223.73,14.1090198]
[1758520880568,0.66,224.53,223.74,25.77597167]
[1758520880750,4.343,224.41,223.76,22.26398654]
[1758520880945,26.07,224.28,223.78,22.13345603]
[1758520881164,17.00967969,224.24,223.8,22.35298309]
[1758520881368,17.00967969,224.24,223.78,22.13345603]
[1758520881559,17.00967969,224.24,223.8,22.35298309]
[1758520881560,15.14,224.23,223.8,22.35298309]
[1758520881872,17.00967969,224.24,223.77,7.14713987]
[1758520882072,5.11871188,224.53,223.78,22.2328078]
[1758520882372,4.45871188,224.51,223.78,22.2328078]
[1758520882578,26.07,224.44,223.78,22.2328078]
[1758520882784,34.87171188,224.39,223.78,22.2328078]
[1758520883089,30.413,224.3,223.78,22.2328078]
[1758520883385,4.45871188,224.27,223.78,22.2328078]
[1758520883590,31.64,224.26,223.78,22.2328078]
[1758520883871,4.45871188,224.32,224.25,0.36432031]
[1758520884061,4.45871188,224.34,223.79,22.38339693]
[1758520884453,26.07,224.35,223.79,22.38339693]
[1758520884652,26.07,224.33,223.79,22.38339693]
[1758520885151,26.07,224.31,223.79,22.38339693]
[1758520885352,72.64,224.32,224.2,22.32018961]
[1758520885554,67.82,224.31,223.79,22.44815613]
[1758520885767,26.07,224.3,223.79,22.44815613]
[1758520886170,26.07,224.28,223.79,22.44815613]
[1758520886383,26.07,224.26,223.79,22.44815613]
[1758520886556,4.45871188,224.34,224.25,13.40331898]
[1758520886756,30.52871188,224.37,224.25,13.40331898]
[1758520886960,4.45871188,224.38,224.25,13.40331898]
[1758520887253,4.45871188,224.45,224.25,13.40331898]
[1758520887465,4.45871188,224.45,223.94,22.3338065]
[1758520887674,0.2,224.56,223.93,0.66]
[1758520887675,4.45871188,224.52,223.96,22.77972042]
[1758520887977,0.2,224.56,224.0,22.72429101]
[1758520888158,0.2,224.56,224.07,22.17164474]
[1758520888355,35.68,224.55,224.06,22.94254244]
[1758520888581,35.68,224.55,224.11,22.44833815]
[1758520888763,35.68,224.55,224.07,0.66]
[1758520888764,52.18,224.54,224.13,42.47675709]
[1758520888956,52.18,224.54,224.12,0.66]
[1758520888957,52.18,224.54,224.16,22.67387245]
[1758520889165,0.2,224.56,224.18,22.1476294]
[1758520889592,30.48,224.55,224.18,22.1476294]
[1758520889761,0.2,224.56,224.2,22.32018961]
[1758520889959,4.45871188,224.81,223.82,9.51008803]
[1758520889960,22.8459912,224.84,224.26,20.0]
[1758520890180,22.27560421,224.82,224.32,20.0]
[1758520890364,22.27560421,224.82,224.29,20.0]
[1758520890775,22.27560421,224.82,224.4,20.0]
[1758520891091,22.45109985,224.9,224.48,20.0]
[1758520891296,22.43730266,224.8,224.45,20.0]
[1758520891484,22.43730266,224.8,224.46,20.0]
[1758520891986,67.8,224.79,224.5,20.0]
[1758520892178,36.3,224.78,224.55,20.0]
[1758520892499,22.98843113,224.9,224.53,20.0]
[1758520892794,22.89670788,224.88,224.31,20.0]
[1758520892972,22.89670788,224.88,224.29,0.66]
[1758520893179,22.93384971,224.68,224.14,22.26375729]
[1758520893394,22.93384971,224.68,224.12,22.54730489]
[1758520893595,4.45871188,224.6,224.12,22.54730489]
[1758520893779,4.45871188,224.6,224.09,22.94433866]
[1758520894106,36.97,224.69,224.1,22.80243237]
[1758520894107,22.4426057,224.58,224.1,22.80243237]
[1758520894403,22.97453126,224.55,224.11,22.44833815]
[1758520894695,36.97,224.69,224.17,22.95959149]
[1758520894696,27.27802596,224.52,224.17,22.95959149]
[1758520894896,4.45871188,224.5,224.19,22.25408749]
[1758520895197,2.69604514,224.5,224.21,22.1676145]
[1758520895372,72.21871188,224.49,224.22,42.99052748]
[1758520895577,2.22604514,224.48,224.37,20.0]
[1758520895783,36.28,224.51,224.44,20.0]
[1758520896009,36.28,224.69,224.22,22.33052748]
[1758520896010,36.28,224.69,224.54,20.0]
[1758520896184,36.28,224.69,224.22,22.33052748]
[1758520896185,36.28,224.69,224.56,4.46868204]
[1758520896503,36.28,224.69,224.22,22.33052748]
[1758520896504,49.00384971,224.68,224.36,4.46868204]
[1758520896715,22.93384971,224.68,224.34,4.46868204]
[1758520896879,0.69,224.68,224.25,4.46868204]
[1758520897196,0.69,224.68,224.29,9.51008803]
[1758520897407,0.69,224.68,224.45,4.46868204]
[1758520897408,67.74,224.67,224.45,4.46868204]
[1758520897580,67.74,224.67,224.47,4.46868204]
[1758520897779,67.74,224.67,224.45,4.46868204]
[1758520897982,67.74,224.67,224.48,4.46868204]
[1758520898186,67.74,224.67,224.43,4.46868204]
[1758520898387,36.28,224.69,224.51,4.46868204]
[1758520898583,67.74,224.68,224.51,4.46868204]
[1758520898806,67.74,224.68,224.22,22.33052748]
[1758520898807,22.15802136,224.89,224.6,4.46868204]
[1758520899025,36.26,224.72,224.53,4.46868204]
[1758520899305,36.26,224.72,224.5,4.46868204]
[1758520899508,36.26,224.72,224.22,22.33052748]
[1758520899509,36.26,224.72,224.47,4.46868204]
[1758520899696,36.26,224.72,224.22,22.33052748]
[1758520899697,90.07891084,224.71,224.41,4.46868204]
[1758520899885,116.83891084,224.71,224.31,4.46868204]
[1758520900084,116.83891084,224.71,224.22,22.33052748]
[1758520900085,123.60359294,224.71,224.29,4.46868204]
[1758520900293,123.60359294,224.71,224.22,31.84061551]
[1758520900294,48.99498405,224.69,224.24,4.46868204]
[1758520900604,48.99498405,224.69,224.26,4.46868204]
[1758520900605,26.07,224.67,224.26,4.46868204]
[1758520900826,48.08737005,224.65,224.37,4.46868204]
[1758520901103,67.72,224.66,224.28,4.44457519]
[1758520901325,22.92498405,224.69,224.22,22.33052748]
[1758520901326,67.7,224.65,224.49,4.44457519]
[1758520901486,67.7,224.65,224.61,4.44457519]
[1758520901686,67.7,224.65,224.22,22.33052748]
[1758520901687,67.7,224.65,224.64,5.7e-07]
[1758520901907,36.26,224.72,224.36,20.0]
[1758520902111,52.62,224.71,224.34,20.0]
[1758520902286,0.2,225.01,224.68,1.2e-06]
[1758520902488,142.92586843,225.0,224.36,20.0]
[1758520902686,22.63934255,224.98,224.33,20.0]
[1758520902994,26.07,224.95,224.28,20.0]
[1758520903194,48.17590102,224.86,224.55,9.51008803]
[1758520903388,22.50816877,224.84,224.07,22.17164474]
[1758520903585,22.17255568,224.82,224.12,22.54730489]
[1758520903887,22.17255568,224.82,223.82,45.75008803]
[1758520903888,22.74435309,224.78,224.28,9.51008803]
[1758520904101,8.91742377,224.96,223.87,13.50794107]
[1758520904102,35.09045861,224.74,224.13,22.47675709]
[1758520904321,61.17063506,224.7,224.38,9.51008803]
[1758520904490,35.96384971,224.68,224.07,22.17164474]
[1758520904691,13.03,224.66,224.07,22.17164474]
[1758520904892,0.69,224.65,224.07,22.17164474]
[1758520905093,26.07,224.63,224.07,22.17164474]
[1758520905293,39.1,224.55,224.07,22.17164474]
[1758520905604,39.1,224.53,224.07,22.17164474]
[1758520905788,0.69,224.52,224.07,22.17164474]
[1758520905990,43.443,224.49,224.07,22.17164474]
[1758520906200,0.69,224.51,224.09,22.94433866]
[1758520906201,39.1,224.47,224.09,22.94433866]
[1758520906408,36.93,224.48,223.82,9.51008803]
[1758520906409,13.03,224.43,224.21,22.1676145]
[1758520906711,67.68,224.42,224.22,30.58151255]
[1758520906915,67.68,224.42,224.07,22.17164474]
[1758520907089,67.68,224.41,224.07,22.17164474]
[1758520907426,94.44,224.4,224.07,22.17164474]
[1758520907713,39.1,224.38,224.07,22.17164474]
[1758520907931,43.443,224.36,224.07,22.17164474]
[1758520908211,39.1,224.32,224.07,22.17164474]
[1758520908418,39.1,224.3,224.07,22.17164474]
[1758520908599,71.05670681,224.31,223.59,13.4174158]
[1758520908600,39.1,224.28,223.59,13.4174158]
[1758520908801,39.1,224.28,223.36,8.25098507]
[1758520908802,36.24,224.23,223.68,35.49254667]
[1758520909026,6.7646821,224.33,224.22,58.33450274]
[1758520909315,6.7646821,224.24,224.22,3.05815768]
[1758520909610,42.1,224.23,223.82,22.53727021]
[1758520909824,42.1,224.23,223.9,22.71638917]
[1758520910025,42.1,224.23,223.68,8.25098507]
[1758520910026,42.1,224.23,223.91,22.77910063]
[1758520910190,26.07,224.51,224.23,40.08054216]
[1758520910396,39.1,224.5,224.23,40.08054216]
[1758520910903,39.1,224.35,224.23,27.05054216]
[1758520911215,39.1,224.35,224.23,4.84109196]
[1758520911409,39.1,224.33,223.44,22.51175849]
[1758520911613,67.72,224.32,223.46,35.89099083]
[1758520911820,26.07,224.3,223.48,35.97017838]
[1758520912001,11.14677971,224.69,223.03,26.26]
[1758520912002,13.03,224.27,223.5,36.15069332]
[1758520912203,13.03,224.25,223.59,36.14946294]
[1758520912406,25.68830451,224.36,223.59,36.14946294]
[1758520912407,6.7646821,224.32,224.26,0.24125973]
[1758520912717,25.68830451,224.36,223.78,22.48040369]
[1758520912718,6.7646821,224.28,223.78,22.48040369]
[1758520912894,26.7646821,224.3,223.78,22.48040369]
[1758520913096,13.03,224.3,223.78,22.48040369]
[1758520913427,13.03,224.26,223.8,22.10235028]
[1758520913807,25.68830451,224.36,224.25,18.24441097]
[1758520914006,20.0,224.34,224.25,18.24441097]
[1758520914329,13.03,224.33,224.25,18.24441097]
[1758520914835,13.03,224.35,224.25,18.24441097]
[1758520915113,13.03,224.33,223.96,22.15383437]
[1758520915316,20.0,224.29,224.07,36.28]
[1758520915538,20.0,224.28,223.79,22.65889671]
[1758520915714,20.0,224.28,223.78,0.66]
[1758520915715,39.1,224.27,223.78,22.93942505]
[1758520915908,26.42913702,224.25,223.69,35.51167939]
[1758520916116,13.39913702,224.25,223.69,35.51167939]
[1758520916318,13.39913702,224.23,223.69,35.51167939]
[1758520916623,67.76,224.26,223.69,35.51167939]
[1758520916805,26.07,224.24,223.36,35.62255803]
[1758520917003,194.66,224.23,223.43,36.30814907]
[1758520917202,23.20962081,224.35,223.45,35.77400356]
[1758520917203,1e-08,224.22,223.45,35.77400356]